[Event "Turkey IS Bank Super League 2017"]
[Site "Darica-Kocaeli"]
[Date "2017.07.27"]
[Round "2.5"]
[White "Osmak, Iulija"]
[Black "Yildiz, Betul Cemre"]
[Result "0-1"]
[ECO "C90"]
[WhiteElo "2353"]
[BlackElo "2326"]
[Annotator "RC"]
[PlyCount "150"]
[EventType "team-tourn"]
[EventCountry "TUR"]
[SourceTitle "playchess.com"]
[Source "ChessBase"]
[SourceQuality "1"]
[TimeControl "40/5400+30:1800+30"]

1. e4 {[%emt 0:00:30]} e5 {[%emt 0:01:00]} 2. Nf3 {[%emt 0:00:30]} Nc6 {[%emt 0:00:30]} 3. Bb5 {[%emt 0:00:30]} a6 {[%emt 0:00:30]} 4. Ba4 {[%emt 0:00:30]} Nf6 {[%emt 0:00:30]} 5. O-O {[%emt 0:00:00]} Be7 {[%emt 0:00:00]} 6. Re1 {[%emt 0:00:00]} b5 {[%emt 0:00:00]} 7. Bb3 {[%emt 0:00:00]} d6 {[%emt 0:00:00]} 8. a4 {[%emt 0:00:00]} Bg4 {[%emt 0:00:00]} 9. c3 {[%emt 0:00:30]} O-O {[%emt 0:00:30]} 10. h3 {[%emt 0:00:30]} Bxf3 {[%emt 0:00:30]} 11. Qxf3 {[%emt 0:00:30]} Na5 {[%emt 0:00:30]} 12. Bc2 {[%emt 0:00:30]} b4 {[%emt 0:00:00]} 13. d4 {[%emt 0:00:00]} c5 {[%emt 0:00:00]} 14. d5 {[%emt 0:00:00]} Nd7 {[%emt 0:00:00]} 15. Qg4 {[%emt 0:08:30]} Rb8 {[%emt 0:05:00]} 16. Bh6 {[%emt 0:05:30]} Bf6 {[%emt 0:01:30]} 17. Nd2 {[%emt 0:00:30] [%clk 1:20]} bxc3 {[%emt 0:09:30]} 18. bxc3 {[%emt 0:00:30]} Qc7 {[%emt 0:04:30]} 19. Reb1 {[%emt 0:09:30]} Rb6 {[%emt 0:09:30]} 20. Rxb6 {[%emt 0:17:30]} Nxb6 {[%emt 0:00:30]} 21. Be3 {[%emt 0:00:30]} Nbc4 {[%emt 0:08:30]} 22. Nxc4 {[%emt 0:00:30]} Nxc4 {[%emt 0:00:00]} 23. Bc1 {[%emt 0:00:30]} Na5 {[%emt 0:05:00]} 24. Qe2 {[%emt 0:00:30]} Ra8 {[%emt 0:06:30]} 25. g3 {[%emt 0:06:30]} Qc8 {[%emt 0:02:30]} 26. Rb1 {[%emt 0:01:30]} Bd8 {[%emt 0:16:30]} 27. Kg2 {[%emt 0:01:30]} Bc7 {[%emt 0:03:30]} 28. Bd3 {[%emt 0:03:30]} Bd8 {[%emt 0:02:30]} 29. Qg4 {[%emt 0:08:30]} Qc7 {[%emt 0:09:49]} 30. h4 {[%emt 0:10:30]} Ra7 {[%emt 0:07:49]} 31. h5 {[%emt 0:03:30]} c4 {[%emt 0:06:47]} 32. Bc2 {[%emt 0:02:30]} Rb7 {[%emt 0:00:43]} 33. Bh6 {[%emt 0:04:37]} f6 {[%emt 0:01:43]} 34. Rxb7 {[%emt 0:08:04]} Nxb7 {[%emt 0:00:05]} 35. Bc1 {[%emt 0:00:34]} Nc5 {[%emt 0:00:34]} 36. Ba3 {[%emt 0:00:18]} Be7 {[%emt 0:00:09]} 37. h6 {[%emt 0:02:28]} g6 {[%emt 0:00:37]} 38. Bd1 {[%emt 0:04:42]} Nd3 {[%emt 0:01:03]} 39. a5 {[%emt 0:01:37]} Kf8 {[%emt 0:00:25]} 40. Ba4 {[%emt 0:00:27]} Qd8 {[%emt 0:01:16]} 41. Bc6 {[%emt 0:10:43]} Qc7 {[%emt 0:08:30]} 42. Kf1 {[%emt 0:07:58]} Qd8 {[%emt 0:06:48]} 43. Bb4 {[%emt 0:03:28]} Nc1 {[%emt 0:05:25]} 44. Bb7 {[%emt 0:04:22]} Nb3 {[%emt 0:01:22]} 45. Bxa6 {[%emt 0:01:17]} Nxa5 {[%emt 0:00:27]} 46. Bb5 {[%emt 0:00:00]} Nb3 {[%emt 0:04:02]} 47. Kg2 {[%emt 0:00:06]} Qc7 {[%emt 0:02:15]} 48. Qe2 {[%emt 0:00:26]} Kf7 {[%emt 0:01:06]} 49. Bxc4 {[%emt 0:00:50]} Nc5 {[%emt 0:00:56]} 50. Bb5 {[%emt 0:01:44]} Qc8 {[%emt 0:02:13]} 51. f3 {[%emt 0:01:09]} Bf8 {[%emt 0:00:16]} 52. Qa2 {[%emt 0:02:32]} Bxh6 {[%emt 0:02:07]} 53. Qa7+ {[%emt 0:01:08]} Kg8 {[%emt 0:00:01]} 54. Qe7 {[%emt 0:00:40]} Qf8 {[%emt 0:01:04]} 55. Qc7 {[%emt 0:00:30]} Be3 {[%emt 0:00:00]} 56. Bd7 {[%emt 0:01:20]} Kh8 {[%emt 0:01:02]} 57. Be6 {[%emt 0:00:17]} h6 {[%emt 0:00:36]} 58. Ba5 {[%emt 0:00:38]} Nd3 {[%emt 0:00:15]} 59. Qc4 {[%emt 0:00:54]} Ne1+ {[%emt 0:00:27]} 60. Kf1 {[%emt 0:00:30]} Nxf3 {[%emt 0:00:06]} 61. Ke2 {[%emt 0:00:00]} Nd2 {[%emt 0:00:14]} 62. Qd3 {[%emt 0:01:21]} Nb3 {[%emt 0:00:13]} 63. Bc7 {[%emt 0:00:23]} Nc1+ {[%emt 0:00:30]} 64. Kxe3 {[%emt 0:00:30]} Nxd3 {[%emt 0:00:30]} 65. Kxd3 {[%emt 0:00:00]} f5 {[%emt 0:00:40]} 66. c4 {[%emt 0:00:00]} Qe7 {[%emt 0:00:47]} 67. Bb8 {[%emt 0:00:36]} Qd8 {[%emt 0:00:30]} 68. Ba7 {[%emt 0:00:00]} Qa5 {[%emt 0:00:41]} 69. Be3 {[%emt 0:00:00]} Qa3+ {[%emt 0:00:00]} 70. Ke2 {[%emt 0:00:19]} Qa2+ {[%emt 0:00:11]} 71. Kf3 {[%emt 0:00:00]} fxe4+ {[%emt 0:00:19]} 72. Kxe4 {[%emt 0:00:17]} Qxc4+ {[%emt 0:00:30]} 73. Kf3 {[%emt 0:00:00]} Qf1+ {[%emt 0:00:00]} 74. Bf2 {[%emt 0:00:16]} e4+ {[%emt 0:00:00]} 75. Ke3 {[%emt 0:00:30]} Qd3+ {[%emt 0:00:00]} 0-1

[Event "Turkey IS Bank Super League 2017"]
[Site "Darica-Kocaeli"]
[Date "2017.07.27"]
[Round "2.7"]
[White "Ozenir, Ekin Baris"]
[Black "Ozen, Bahadir"]
[Result "1-0"]
[ECO "A42"]
[WhiteElo "2098"]
[BlackElo "2315"]
[Annotator "NA"]
[PlyCount "109"]
[EventType "team-tourn"]
[EventCountry "TUR"]
[SourceTitle "playchess.com"]
[Source "ChessBase"]
[SourceQuality "1"]
[TimeControl "40/5400+30:1800+30"]

1. d4 {[%emt 0:00:30]} g6 {[%emt 0:01:00]} 2. e4 {[%emt 0:01:30]} Bg7 {[%emt 0:00:30]} 3. c4 {[%emt 0:00:30]} d6 {[%emt 0:01:30]} 4. Nc3 {[%emt 0:00:30]} e5 {[%emt 0:00:30]} 5. d5 {[%emt 0:04:30]} Nd7 {[%emt 0:00:30]} 6. Be3 {[%emt 0:07:30]} Bh6 {[%emt 0:01:30]} 7. Bxh6 {[%emt 0:04:30]} Nxh6 {[%emt 0:00:00]} 8. h4 $11 {[%emt 0:09:30] [%clk 1:05]} (8. Qd2 $5 {[%cal Rd2h6]} Ng4 9. Nf3 $14) 8... Ng8 {[%emt 0:13:00]} 9. h5 {[%emt 0:05:30]} Ngf6 {[%emt 0:01:30]} 10. hxg6 {[%emt 0:04:30]} fxg6 {[%emt 0:00:30]} 11. Qd2 {[%emt 0:04:30]} Nc5 {[%emt 0:03:30]} 12. Bd3 {[%emt 0:05:30]} Bd7 {[%emt 0:07:30]} 13. Bc2 {[%emt 0:02:30]} a5 {[%emt 0:03:30]} 14. Nge2 {[%emt 0:08:30]} O-O {[%emt 0:04:30]} 15. f3 {[%emt 0:03:30]} a4 {[%emt 0:03:30]} 16. Qh6 {[%emt 0:06:30]} Qe7 {[%emt 0:02:30]} 17. O-O {[%emt 0:04:30]} c6 {[%emt 0:14:30]} 18. Ng3 {[%emt 0:04:30]} a3 {[%emt 0:05:30]} 19. b4 {[%emt 0:01:11]} Na6 {[%emt 0:00:30]} 20. Rab1 {[%emt 0:00:11]} c5 {[%emt 0:01:30]} 21. bxc5 {[%emt 0:04:10]} Nxc5 {[%emt 0:00:00]} 22. Rb4 {[%emt 0:00:29]} Rfc8 {[%emt 0:09:00]} 23. Rfb1 {[%emt 0:01:36]} Rf8 {[%emt 0:04:30]} 24. Nd1 {[%emt 0:03:11]} Ne8 {[%emt 0:01:30]} 25. Nf2 {[%emt 0:02:02]} Nc7 {[%emt 0:00:30]} 26. Ne2 {[%emt 0:00:52]} Rfb8 {[%emt 0:04:25]} 27. Nc3 {[%emt 0:00:47]} Be8 {[%emt 0:03:11]} 28. Ng4 {[%emt 0:01:38]} Bd7 {[%emt 0:01:18]} 29. Nf2 {[%emt 0:00:47]} Rc8 {[%emt 0:02:03]} 30. Rb6 {[%emt 0:01:43]} Ra6 {[%emt 0:01:41]} 31. Rxa6 {[%emt 0:01:00]} N7xa6 {[%emt 0:00:25]} 32. Qc1 {[%emt 0:00:15]} h5 {[%emt 0:01:46]} 33. Qxa3 {[%emt 0:01:02]} g5 {[%emt 0:00:01]} 34. Qc1 {[%emt 0:01:43]} Qf6 {[%emt 0:00:30]} 35. Qe3 {[%emt 0:00:30]} Kf7 {[%emt 0:00:08]} 36. Ne2 {[%emt 0:01:54]} Nc7 {[%emt 0:00:52]} 37. Ng3 {[%emt 0:00:53]} Qf4 {[%emt 0:00:01]} 38. Qxf4+ {[%emt 0:00:46]} gxf4 {[%emt 0:00:02]} 39. Nf5 {[%emt 0:00:00]} Bxf5 {[%emt 0:08:04]} 40. exf5 {[%emt 0:00:00]} b5 {[%emt 0:01:03]} 41. cxb5 {[%emt 0:04:50]} Nxd5 {[%emt 0:00:00]} 42. Ne4 {[%emt 0:04:30]} Nxe4 {[%emt 0:06:00]} 43. Bxe4 {[%emt 0:01:30]} Nc3 {[%emt 0:00:30]} 44. Rb3 {[%emt 0:00:30]} Na4 {[%emt 0:09:46]} 45. b6 {[%emt 0:02:30]} Rb8 {[%emt 0:02:18]} 46. b7 {[%emt 0:00:30]} Nc5 {[%emt 0:00:00]} 47. Bd5+ {[%emt 0:01:30]} Kf6 {[%emt 0:00:07]} 48. Ra3 {[%emt 0:00:30]} Kxf5 {[%emt 0:00:30]} 49. Ra8 {[%emt 0:00:30]} Rxb7 {[%emt 0:00:30]} 50. Bxb7 {[%emt 0:00:30]} Nxb7 {[%emt 0:00:00]} 51. a4 {[%emt 0:00:30]} Ke6 {[%emt 0:02:10]} 52. a5 {[%emt 0:00:30]} Nc5 {[%emt 0:03:02]} 53. a6 {[%emt 0:00:30]} Kd5 {[%emt 0:03:32]} 54. a7 {[%emt 0:00:00]} h4 {[%emt 0:02:08]} 55. Rh8 {[%emt 0:00:00]} 1-0

[Event "Turkey IS Bank Super League 2017"]
[Site "Darica-Kocaeli"]
[Date "2017.07.27"]
[Round "2.8"]
[White "Incecik, Seyma Zeynep"]
[Black "Onur, Cigdem"]
[Result "1-0"]
[ECO "D04"]
[WhiteElo "1804"]
[BlackElo "1699"]
[Annotator "NA"]
[PlyCount "117"]
[EventType "team-tourn"]
[EventCountry "TUR"]
[SourceTitle "playchess.com"]
[Source "ChessBase"]
[SourceQuality "1"]
[TimeControl "40/5400+30:1800+30"]

1. b3 {[%emt 0:00:30]} Nf6 {[%emt 0:01:00]} 2. Bb2 {[%emt 0:00:30]} g6 {[%emt 0:00:30]} 3. c4 {[%emt 0:00:30]} Bg7 {[%emt 0:00:30]} 4. Nf3 {[%emt 0:00:30]} O-O {[%emt 0:00:30]} 5. e3 {[%emt 0:02:30]} c5 {[%emt 0:01:30]} 6. Be2 {[%emt 0:02:30]} Nc6 {[%emt 0:00:30]} 7. O-O $11 {[%emt 0:01:30]} d5 {[%emt 0:04:30]} 8. d4 {[%emt 0:11:30] [%clk 1:14]} Ne4 {[%emt 0:14:30]} 9. Nbd2 {[%emt 0:17:30]} e6 {[%emt 0:15:30]} 10. Rc1 {[%emt 0:15:30]} Re8 {[%emt 0:05:30]} 11. Qc2 {[%emt 0:06:30]} Nb4 {[%emt 0:12:30]} 12. Qb1 {[%emt 0:01:30]} Nxd2 {[%emt 0:00:30]} 13. Nxd2 {[%emt 0:00:30]} cxd4 {[%emt 0:03:30]} 14. Bxd4 {[%emt 0:01:30]} Bxd4 {[%emt 0:09:30]} 15. exd4 {[%emt 0:00:30]} Qa5 {[%emt 0:03:30]} 16. a4 {[%emt 0:02:30]} e5 {[%emt 0:05:55]} 17. Nf3 {[%emt 0:16:06]} Bf5 {[%emt 0:05:33]} 18. Qb2 {[%emt 0:01:59]} exd4 {[%emt 0:12:28]} 19. Nxd4 {[%emt 0:00:30]} Nd3 {[%emt 0:00:51]} 20. Qc3 {[%emt 0:05:34]} Qxc3 {[%emt 0:00:30]} 21. Rxc3 {[%emt 0:00:14]} Nf4 {[%emt 0:00:08]} 22. Bf3 {[%emt 0:01:47]} Bd3 {[%emt 0:01:36]} 23. Rd1 {[%emt 0:00:31]} dxc4 {[%emt 0:00:13]} 24. g3 {[%emt 0:03:03]} Nh3+ {[%emt 0:00:42]} 25. Kg2 {[%emt 0:00:19]} Ng5 {[%emt 0:00:11]} 26. Bxb7 {[%emt 0:01:15]} Rad8 {[%emt 0:00:42]} 27. bxc4 {[%emt 0:01:42]} Be4+ {[%emt 0:00:37]} 28. Bxe4 {[%emt 0:00:30]} Nxe4 {[%emt 0:00:22]} 29. Re3 {[%emt 0:00:55]} Nc5 {[%emt 0:00:30]} 30. Nc6 {[%emt 0:02:02]} Rxd1 {[%emt 0:00:30]} 31. Rxe8+ {[%emt 0:00:30]} Kg7 {[%emt 0:00:03]} 32. Re7 {[%emt 0:01:00]} Rd6 {[%emt 0:00:48]} 33. Nxa7 {[%emt 0:00:37]} Nxa4 {[%emt 0:00:14]} 34. Rc7 {[%emt 0:00:56]} Kf6 {[%emt 0:01:24]} 35. c5 {[%emt 0:00:24]} Rd8 {[%emt 0:00:03]} 36. Nb5 {[%emt 0:00:59]} Rd5 {[%emt 0:00:36]} 37. Nd6 {[%emt 0:00:58]} Ke6 {[%emt 0:00:31]} 38. Nxf7 {[%emt 0:00:42]} Nxc5 {[%emt 0:00:25]} 39. h4 {[%emt 0:00:26]} Nd7 {[%emt 0:00:30]} 40. Ng5+ {[%emt 0:00:30]} Kd6 {[%emt 0:00:08]} 41. Ra7 {[%emt 0:03:01]} h5 {[%emt 0:17:29]} 42. Ra6+ {[%emt 0:00:30]} Ke5 {[%emt 0:01:18]} 43. Rxg6 {[%emt 0:01:30]} Nf6 {[%emt 0:01:25]} 44. Nh3 {[%emt 0:02:30]} Kf5 {[%emt 0:08:32]} 45. Rh6 {[%emt 0:01:30]} Rd2 {[%emt 0:01:25]} 46. Nf4 {[%emt 0:01:30]} Rxf2+ {[%emt 0:00:43]} 47. Kxf2 {[%emt 0:00:30]} Ng4+ {[%emt 0:00:06]} 48. Kf3 {[%emt 0:00:00]} Nxh6 {[%emt 0:00:30]} 49. Nxh5 {[%emt 0:00:00]} Kg6 {[%emt 0:02:16]} 50. g4 {[%emt 0:01:30]} Ng8 {[%emt 0:01:31]} 51. Ke4 {[%emt 0:01:30]} Ne7 {[%emt 0:00:32]} 52. Nf4+ {[%emt 0:00:30]} Kg7 {[%emt 0:00:32]} 53. g5 {[%emt 0:03:31]} Ng8 {[%emt 0:00:37]} 54. h5 {[%emt 0:01:08]} Kh7 {[%emt 0:00:30]} 55. Nd5 {[%emt 0:00:18]} Kg7 {[%emt 0:00:23]} 56. Kf5 {[%emt 0:03:46]} Kh8 {[%emt 0:00:33]} 57. Ke6 {[%emt 0:01:55]} Kg7 {[%emt 0:00:33]} 58. Ne7 {[%emt 0:00:00]} Nh6 {[%emt 0:00:31]} 59. Nf5+ {[%emt 0:00:00]} 1-0

[Event "Turkey IS Bank Super League 2017"]
[Site "Darica-Kocaeli"]
[Date "2017.07.27"]
[Round "2.12"]
[White "Sevgi, Volkan"]
[Black "Citak, Selim"]
[Result "1/2-1/2"]
[ECO "A38"]
[WhiteElo "2199"]
[BlackElo "2306"]
[Annotator "NA"]
[PlyCount "33"]
[EventType "team-tourn"]
[EventCountry "TUR"]
[SourceTitle "playchess.com"]
[Source "ChessBase"]
[SourceQuality "1"]
[TimeControl "40/5400+30:1800+30"]

1. Nf3 {[%emt 0:00:30]} Nf6 {[%emt 0:01:00]} 2. g3 {[%emt 0:00:30]} c5 {[%emt 0:02:30]} 3. Bg2 {[%emt 0:02:30]} Nc6 {[%emt 0:00:30]} 4. c4 {[%emt 0:01:30]} g6 {[%emt 0:02:30]} 5. O-O {[%emt 0:00:30]} Bg7 {[%emt 0:00:30]} 6. d4 {[%emt 0:00:30]} cxd4 {[%emt 0:00:30]} 7. Nxd4 {[%emt 0:00:30]} O-O {[%emt 0:00:30]} 8. Nc3 {[%emt 0:00:30]} Qa5 {[%emt 0:00:00]} 9. Nc2 {[%emt 0:11:30]} d6 {[%emt 0:01:00]} 10. Nd5 {[%emt 0:03:30]} Nxd5 {[%emt 0:02:30]} 11. cxd5 $11 {[%emt 0:00:00] [%clk 1:11] LiveBook: 24 Games} Ne5 {[%emt 0:02:30]} 12. Bd2 {[%emt 0:03:00]} Qb6 {[%emt 0:00:30]} 13. Bc3 {[%emt 0:00:30]} Bd7 {[%emt 0:03:30]} 14. Bd4 {[%emt 0:01:30]} Qa5 {[%emt 0:02:30]} 15. Bc3 {[%emt 0:05:30]} Qb6 {[%emt 0:01:30]} 16. Bd4 {[%emt 0:00:30]} Qa5 {[%emt 0:00:30]} 17. Bc3 {[%emt 0:08:30]} 1/2-1/2

[Event "Turkey IS Bank Super League 2017"]
[Site "Darica-Kocaeli"]
[Date "2017.07.27"]
[Round "2.14"]
[White "Gulden, Egemen"]
[Black "Yurtseven, Melih"]
[Result "0-1"]
[ECO "B23"]
[WhiteElo "2044"]
[BlackElo "2353"]
[Annotator "NA"]
[PlyCount "56"]
[EventType "team-tourn"]
[EventCountry "TUR"]
[SourceTitle "playchess.com"]
[Source "ChessBase"]
[SourceQuality "1"]
[TimeControl "40/5400+30:1800+30"]

1. e4 {[%emt 0:00:30]} e6 {[%emt 0:01:00]} 2. Nc3 {[%emt 0:02:30]} d5 {[%emt 0:00:30]} 3. g3 {[%emt 0:01:30]} Nf6 {[%emt 0:01:30]} 4. Bg2 {[%emt 0:01:30]} dxe4 {[%emt 0:00:30]} 5. Nxe4 {[%emt 0:00:30]} Nxe4 {[%emt 0:00:30]} 6. Bxe4 {[%emt 0:00:30]} c5 {[%emt 0:00:30]} 7. d3 {[%emt 0:04:30]} Nc6 {[%emt 0:00:30]} 8. Ne2 {[%emt 0:02:30]} Be7 {[%emt 0:00:30]} 9. Be3 {[%emt 0:03:30]} e5 {[%emt 0:03:30]} 10. h3 $11 {[%emt 0:07:30] [%clk 1:10]} Be6 {[%emt 0:04:30]} 11. Qd2 {[%emt 0:05:30]} Qd7 {[%emt 0:01:30]} 12. f4 {[%emt 0:07:30]} O-O {[%emt 0:20:30]} 13. fxe5 {[%emt 0:08:30]} Nxe5 {[%emt 0:00:30]} 14. Nf4 {[%emt 0:00:00]} Rad8 {[%emt 0:05:30]} 15. Qg2 {[%emt 0:07:00]} b6 {[%emt 0:05:30]} 16. O-O {[%emt 0:02:30]} f5 {[%emt 0:04:30]} 17. Bb7 {[%emt 0:02:30]} Bf7 {[%emt 0:00:30]} 18. c4 {[%emt 0:31:41]} Bg5 {[%emt 0:09:30]} 19. b3 {[%emt 0:05:37]} Rfe8 {[%emt 0:12:30]} 20. Bf2 {[%emt 0:02:50]} Re7 {[%emt 0:04:30]} 21. Bd5 {[%emt 0:00:30]} Bxf4 {[%emt 0:00:30]} 22. gxf4 {[%emt 0:01:16]} Bxd5 {[%emt 0:01:30]} 23. cxd5 {[%emt 0:00:31]} Ng6 {[%emt 0:00:30]} 24. d4 {[%emt 0:00:32]} cxd4 {[%emt 0:01:41]} 25. Bxd4 {[%emt 0:00:30]} Qxd5 {[%emt 0:00:19]} 26. Qxd5+ {[%emt 0:00:28]} Rxd5 {[%emt 0:00:30]} 27. Bf2 {[%emt 0:00:28]} Nxf4 {[%emt 0:00:30]} 28. Bh4 {[%emt 0:00:30]} Re4 {[%emt 0:00:00]} 0-1

[Event "Turkey IS Bank Super League 2017"]
[Site "Darica-Kocaeli"]
[Date "2017.07.27"]
[Round "2.15"]
[White "Unat, Can Haktan"]
[Black "Kamer, Kayra"]
[Result "1/2-1/2"]
[ECO "B41"]
[WhiteElo "2006"]
[BlackElo "2062"]
[Annotator "NA"]
[PlyCount "245"]
[EventType "team-tourn"]
[EventCountry "TUR"]
[SourceTitle "playchess.com"]
[Source "ChessBase"]
[SourceQuality "1"]
[TimeControl "40/5400+30:1800+30"]

1. e4 {[%emt 0:00:30]} c5 {[%emt 0:01:00]} 2. Nf3 {[%emt 0:00:30]} e6 {[%emt 0:00:30]} 3. d4 {[%emt 0:00:30]} cxd4 {[%emt 0:00:30]} 4. Nxd4 {[%emt 0:00:30]} a6 {[%emt 0:00:30]} 5. c4 {[%emt 0:00:00]} Nf6 {[%emt 0:00:00]} 6. Nc3 {[%emt 0:00:00]} Qc7 $14 {[%emt 0:01:00]} 7. Be2 {[%emt 0:00:00]} Nc6 {[%emt 0:01:30]} 8. Be3 {[%emt 0:04:00]} Bb4 {[%emt 0:00:30]} 9. O-O {[%emt 0:00:30]} Bxc3 {[%emt 0:00:30]} 10. bxc3 {[%emt 0:00:30]} Nxe4 {[%emt 0:00:30]} 11. Bf3 {[%emt 0:01:30]} Nf6 {[%emt 0:10:30]} 12. Nxc6 {[%emt 0:00:00]} bxc6 {[%emt 0:02:30]} 13. Bc5 {[%emt 0:00:00]} d5 {[%emt 0:00:30]} 14. Re1 {[%emt 0:01:30] [%clk 1:27]} Bb7 {[%emt 0:09:30]} 15. Rb1 {[%emt 0:00:30]} Nd7 {[%emt 0:06:30]} 16. Ba3 {[%emt 0:00:00]} O-O-O {[%emt 0:02:30]} 17. cxd5 {[%emt 0:00:00]} cxd5 {[%emt 0:07:30]} 18. c4 {[%emt 0:00:30]} Ne5 {[%emt 0:01:30]} 19. cxd5 {[%emt 0:00:30]} Bxd5 {[%emt 0:13:30]} 20. Bxd5 {[%emt 0:08:30]} Rxd5 {[%emt 0:09:30]} 21. Qa4 {[%emt 0:01:30]} Ra5 {[%emt 0:00:30]} 22. Qe4 {[%emt 0:00:30]} Rxa3 {[%emt 0:00:30]} 23. Qa8+ {[%emt 0:00:30]} Kd7 {[%emt 0:00:00]} 24. Rbd1+ {[%emt 0:04:30]} Ke7 {[%emt 0:01:00]} 25. Qxh8 {[%emt 0:00:00]} Ng4 {[%emt 0:03:30]} 26. Qxh7 {[%emt 0:00:00]} Rxa2 {[%emt 0:03:30]} 27. Qh4+ {[%emt 0:00:30]} Nf6 {[%emt 0:00:30]} 28. Qb4+ {[%emt 0:00:00]} Ke8 {[%emt 0:00:00]} 29. Rc1 {[%emt 0:00:00]} Qa7 {[%emt 0:00:00]} 30. Qf4 {[%emt 0:03:30]} Nd5 {[%emt 0:01:30]} 31. Qf3 {[%emt 0:00:00]} Rd2 {[%emt 0:03:30]} 32. Rc8+ {[%emt 0:03:00]} Ke7 {[%emt 0:00:30]} 33. Qg3 {[%emt 0:00:30]} Qd4 {[%emt 0:00:30]} 34. Qa3+ {[%emt 0:02:30]} Kf6 {[%emt 0:00:30]} 35. Qf3+ {[%emt 0:01:30]} Qf4 {[%emt 0:01:30]} 36. Qxf4+ {[%emt 0:04:30]} Nxf4 {[%emt 0:00:30]} 37. h3 {[%emt 0:00:30]} Nd3 {[%emt 0:00:30]} 38. Re3 {[%emt 0:00:30]} Ne5 {[%emt 0:00:30]} 39. Rc5 {[%emt 0:00:30]} Nd7 {[%emt 0:00:30]} 40. Ra5 {[%emt 0:00:30]} Rd6 {[%emt 0:30:30]} 41. Rea3 {[%emt 0:30:30]} Nb8 {[%emt 0:00:30]} 42. Rb3 {[%emt 0:00:30]} Nd7 {[%emt 0:00:30]} 43. Rb7 {[%emt 0:00:30]} Ne5 {[%emt 0:00:00]} 44. Kh2 {[%emt 0:00:00]} Rd2 {[%emt 0:00:00]} 45. Kg3 {[%emt 0:00:00]} Nd3 {[%emt 0:00:00]} 46. Rb3 {[%emt 0:00:00]} Kg6 {[%emt 0:00:00]} 47. Rb1 {[%emt 0:00:00]} Nxf2 {[%emt 0:00:00]} 48. Rxa6 {[%emt 0:00:00]} Ne4+ {[%emt 0:00:00]} 49. Kh2 {[%emt 0:00:00]} Re2 {[%emt 0:00:00]} 50. Rf1 {[%emt 0:00:00]} Nd2 {[%emt 0:00:00]} 51. Rf4 {[%emt 0:00:00]} f5 {[%emt 0:00:00]} 52. Ra7 {[%emt 0:00:00]} e5 {[%emt 0:00:00]} 53. Ra6+ {[%emt 0:01:00]} Kg5 {[%emt 0:00:00]} 54. Rb4 {[%emt 0:00:30]} Nf3+ {[%emt 0:00:00]} 55. Kg3 {[%emt 0:00:30]} Ne1 {[%emt 0:00:00]} 56. h4+ {[%emt 0:00:30]} Kh5 {[%emt 0:00:00]} 57. Rb8 {[%emt 0:00:00]} Rxg2+ {[%emt 0:00:00]} 58. Kh3 {[%emt 0:00:00]} Rg6 {[%emt 0:00:00]} 59. Rh8+ {[%emt 0:00:00]} Rh6 {[%emt 0:00:00]} 60. Rhxh6+ {[%emt 0:00:00]} gxh6 {[%emt 0:00:00]} 61. Rf6 {[%emt 0:00:00]} Nd3 {[%emt 0:00:00]} 62. Rxf5+ {[%emt 0:00:00]} Kg6 {[%emt 0:00:00]} 63. Rf8 {[%emt 0:00:00]} Nf4+ {[%emt 0:00:00]} 64. Kg4 {[%emt 0:00:00]} h5+ {[%emt 0:00:00]} 65. Kf3 {[%emt 0:00:30]} Ne6 {[%emt 0:00:00]} 66. Rh8 {[%emt 0:00:30]} Nd4+ {[%emt 0:00:00]} 67. Ke4 {[%emt 0:00:00]} Nf5 {[%emt 0:00:00]} 68. Rg8+ {[%emt 0:03:00]} Kf7 {[%emt 0:00:00]} 69. Rg5 {[%emt 0:00:30]} Nxh4 {[%emt 0:00:00]} 70. Rxh5 {[%emt 0:00:30]} Ng6 {[%emt 0:00:00]} 71. Kf5 {[%emt 0:00:30]} Ne7+ {[%emt 0:00:00]} 72. Kxe5 {[%emt 0:00:30]} Ng6+ {[%emt 0:00:00]} 73. Kf5 {[%emt 0:00:00]} Ne7+ {[%emt 0:00:00]} 74. Kf4 {[%emt 0:00:00]} Kf6 {[%emt 0:00:00]} 75. Rh6+ {[%emt 0:00:30]} Ng6+ {[%emt 0:00:00]} 76. Kg4 {[%emt 0:00:00]} Kf7 {[%emt 0:00:00]} 77. Kg5 {[%emt 0:00:00]} Ne7 {[%emt 0:00:00]} 78. Rd6 {[%emt 0:00:00]} Ng8 {[%emt 0:00:00]} 79. Ra6 {[%emt 0:01:00]} Ne7 {[%emt 0:00:00]} 80. Rf6+ {[%emt 0:01:30]} Ke8 {[%emt 0:00:00]} 81. Rh6 {[%emt 0:00:30]} Kd7 {[%emt 0:00:00]} 82. Kf4 {[%emt 0:00:30]} Nc6 {[%emt 0:00:00]} 83. Ke4 {[%emt 0:00:00]} Ne7 {[%emt 0:00:00]} 84. Ke5 {[%emt 0:00:00]} Nc6+ {[%emt 0:00:00]} 85. Kd5 {[%emt 0:00:30]} Ne7+ {[%emt 0:00:00]} 86. Kc5 {[%emt 0:00:00]} Nf5 {[%emt 0:00:00]} 87. Rf6 {[%emt 0:00:00]} Ne7 {[%emt 0:00:00]} 88. Rd6+ {[%emt 0:00:30]} Ke8 {[%emt 0:00:00]} 89. Rd1 {[%emt 0:00:30]} Kf7 {[%emt 0:00:00]} 90. Kd6 {[%emt 0:00:00]} Ng6 {[%emt 0:00:00]} 91. Rf1+ {[%emt 0:00:00]} Kg7 {[%emt 0:00:00]} 92. Kd5 {[%emt 0:00:30]} Ne7+ {[%emt 0:00:00]} 93. Ke6 {[%emt 0:00:00]} Ng6 {[%emt 0:00:00]} 94. Rg1 {[%emt 0:00:00]} Kh6 {[%emt 0:00:00]} 95. Kf6 {[%emt 0:00:30]} Nh4 {[%emt 0:00:00]} 96. Rg5 {[%emt 0:01:30]} Nf3 {[%emt 0:00:00]} 97. Rg3 {[%emt 0:04:30]} Nh4 {[%emt 0:00:00]} 98. Rg8 {[%emt 0:04:30]} Kh5 {[%emt 0:00:00]} 99. Rg5+ {[%emt 0:00:30]} Kh6 {[%emt 0:00:00]} 100. Ra5 {[%emt 0:00:30]} Nf3 {[%emt 0:00:00]} 101. Kf5 {[%emt 0:00:30]} Nh4+ {[%emt 0:00:30]} 102. Kg4 {[%emt 0:00:30]} Ng6 {[%emt 0:00:30]} 103. Ra7 {[%emt 0:00:00]} Ne5+ {[%emt 0:00:30]} 104. Kf5 {[%emt 0:00:00]} Nf3 {[%emt 0:00:30]} 105. Ra4 {[%emt 0:00:30]} Kh5 {[%emt 0:00:30]} 106. Kf4 {[%emt 0:00:00]} Nh4 {[%emt 0:00:30]} 107. Ra5+ {[%emt 0:00:00]} Kh6 {[%emt 0:00:30]} 108. Rg5 {[%emt 0:00:30]} Ng6+ {[%emt 0:00:30]} 109. Kf5 {[%emt 0:00:00]} Nh4+ {[%emt 0:00:30]} 110. Kf6 {[%emt 0:00:00]} Nf3 {[%emt 0:00:00]} 111. Rd5 {[%emt 0:00:30]} Nh4 {[%emt 0:00:00]} 112. Rd8 {[%emt 0:00:30]} Kh5 {[%emt 0:00:30]} 113. Rg8 {[%emt 0:00:00]} Nf3 {[%emt 0:00:30]} 114. Kf5 {[%emt 0:00:00]} Nh4+ {[%emt 0:00:30]} 115. Ke4 {[%emt 0:00:30]} Ng6 {[%emt 0:00:00]} 116. Rd8 {[%emt 0:00:30]} Kg5 {[%emt 0:00:00]} 117. Rd5+ {[%emt 0:00:30]} Kf6 {[%emt 0:00:30]} 118. Rd6+ {[%emt 0:00:30]} Kg5 {[%emt 0:00:30]} 119. Re6 {[%emt 0:00:00]} Nf8 {[%emt 0:00:00]} 120. Re5+ {[%emt 0:00:00]} Kf6 {[%emt 0:00:00]} 121. Rf5+ {[%emt 0:00:00]} Ke7 {[%emt 0:00:30]} 122. Kd5 {[%emt 0:00:00]} Nd7 {[%emt 0:00:30]} 123. Rg5 {[%emt 0:00:00]} 1/2-1/2